Cogmind - Beta 13 @@@ ROGUE MODE // 2024.05.04 @ 16:44:10 Player: Compound1080 Result: Self-destructed Performance ------------- Evolutions (1) 500 Regions Visited (2) 400 Robots Destroyed (10) 50 Value Destroyed (300) 300 Prototype IDs (1) 20 Alien Tech Used (0) 0 Bonus (0) 0 TOTAL SCORE: 1270 Bonus ------- None Cogmind --------- Core Integrity 100/400 Matter 268/300 Energy 250/250 System Corruption 0% Temperature Cool (0) Movement Core (250) Ox4 Location -9/Materials Parts ------- > --- POWER (1) -------- Ion Engine > --- PROPULSION (2) --- (None) > --- UTILITY (4) ------ Small Storage Unit Core Shielding > --- WEAPON (2) ------- Flail > --- INVENTORY (8) ---- Heavy Ion Engine Light Treads Compact Wheel Compact Wheel Salvage Targeting Computer Particle Gun Light Assault Rifle Flail Peak State ------------ > --- POWER ------------ Heavy Ion Engine > --- PROPULSION ------- Compact Wheel Compact Wheel > --- UTILITY ---------- Small Storage Unit Structural Scanner > --- WEAPON ----------- Light Assault Rifle Flail > --- INVENTORY -------- Light Treads Salvage Targeting Computer Particle Gun Flail [Rating: 10] Favorites ----------- Power Ion Engine Engine Ion Engine Propulsion Aluminum Leg Leg Aluminum Leg Wheel Compact Wheel Hover Unit Hover Unit Utility Small Storage Unit Device Shield Generator Storage Small Storage Unit Protection Core Shielding Weapon Light Assault Rifle Ballistic Gun Light Assault Rifle Launcher Grenade Launcher Impact Weapon Flail Build | -11 -10 -9 ------- Run | Yrd Mat Mat Slots Evolved 2 | . . 2 Power . | . . . Propulsion . | . . . Utility 2 | . . 2 Weapon . | . . . Parts Attached 21 | 5 2 14 Power 5 | 1 . 4 Engine 5 | 1 . 4 Core . | . . . Reactor . | . . . Propulsion 6 | 2 . 4 Treads . | . . . Leg 2 | 2 . . Wheel 2 | . . 2 Hover 2 | . . 2 Flight . | . . . Utility 4 | 1 1 2 Device 2 | . 1 1 Storage 1 | 1 . . Processor . | . . . Hackware . | . . . Protection 1 | . . 1 Artifact . | . . . Weapon 6 | 1 1 4 Energy Gun . | . . . Energy Cannon . | . . . Ballistic Gun 4 | 1 1 2 Ballistic Cannon . | . . . Launcher 1 | . . 1 Special Weapon . | . . . Impact Weapon 1 | . . 1 Slashing Weapon . | . . . Piercing Weapon . | . . . Special Melee Weapon . | . . . Unidentified Prototypes 1 | . . 1 Parts Lost 10 | . . 10 Power 1 | . . 1 Propulsion 4 | . . 4 Utility 2 | . . 2 Weapon 3 | . . 3 Highest Loss Streak 6 | . . 6 To Critical Strikes . | . . . Average Slot Usage (%) 75 | . 93 65 Engine 11 | . 14 10 Leg 13 | . 28 6 Wheel 5 | . . 9 Hover 3 | . . 4 Device 10 | . 13 8 Storage 12 | . 14 11 Ballistic Gun 13 | . 22 8 Impact Weapon 3 | . . 6 Naked Turns . | . . . Heaviest Build 16 | 11 14 16 Greatest Support 32 | 20 20 32 Greatest Overweight (x) 4 | 1 . 4 Average Overweight (x) . | . . . Largest Inventory Capacity 8 | 8 8 8 Average Capacity 7 | 6 8 8 Most Carried 8 | 4 6 8 Average Carried 5 | 2 4 5 Final Capacity 8 | 8 8 8 Final Carried 8 | 3 6 8 Class Distribution -------------------- 100% | Mutant Dominant Class ---------------- Mutant | -10/Materials Mutant | -9/Materials Resources | -11 -10 -9 ----------- Run | Yrd Mat Mat Matter Collected 476 | 197 88 191 Remotely . | . . . Salvage Created 327 | . 88 239 Parts 8 | . 4 4 Haulers Intercepted . | . . . Recyclers Shooed . | . . . Parts Field Recycled . | . . . Retrieved Matter . | . . . Parts Self-Destructed . | . . . Prevented . | . . . Kills | -11 -10 -9 ------- Run | Yrd Mat Mat Combat Hostiles Destroyed 7 | . 2 5 Guns 4 | . 2 2 AOE 3 | . . 3 Classes Destroyed 5 | . 1 4 Builder 1 | . . 1 Recycler 1 | . . 1 Watcher 1 | . . 1 Grunt 5 | . 2 3 Sentry 2 | . . 2 Best Kill Streak 5 | . 2 5 Combat Bots Only 4 | . 2 4 Max Kills in Single Turn 1 | . 1 1 Gunslinging . | . . . Exploded 1 | . . 1 Melee . | . . . Uniques/NPCs Destroyed . | . . . Combat | -11 -10 -9 -------- Run | Yrd Mat Mat Hostile Shots Fired 137 | . 23 114 Missed 42 | . 5 37 Damage Taken 1167 | . 167 1000 Core 358 | . 58 300 Absorbed by Shields 177 | . 64 113 Redirected to Shielding 19 | . . 19 Core Remaining (%) 88 | 100 76 . Volleys Fired 40 | . 14 26 Largest 2 | . 2 2 Hottest 40 | . 40 40 Shots Fired 67 | . 28 39 Gun 58 | . 28 30 Cannon . | . . . Launcher 9 | . . 9 Special . | . . . Kinetic 58 | . 28 30 Thermal . | . . . Explosive 9 | . . 9 Electromagnetic . | . . . Robot Hit Streak 12 | . 12 12 Robot Miss Streak 3 | . 2 3 Penetration Max . | . . . Secondary Targets . | . . . Shots Hit Robots 54 | . 20 34 Core Hits 19 | . 6 13 Critical Kills . | . . . Critical Parts Destroyed 1 | . . 1 Critical Strikes 2 | . . 2 Destroy 2 | . . 2 Melee Attacks 12 | . . 12 Impact 12 | . . 12 Slashing . | . . . Piercing . | . . . Sneak Attacks 2 | . . 2 Combat Hostiles . | . . . Follow-up Attacks . | . . . Damage Inflicted 891 | . 157 734 Guns 348 | . 157 191 Cannons . | . . . Explosions 372 | . . 372 Melee 171 | . . 171 Ramming . | . . . Kinetic 348 | . 157 191 Thermal . | . . . Explosive 372 | . . 372 Electromagnetic . | . . . Impact 171 | . . 171 Slashing . | . . . Piercing . | . . . Highest Corruption . | . . . Average Corruption . | . . . Corruption Purged . | . . . Corruption Blocked . | . . . Overload Shots . | . . . Overflow Damage 106 | . . 106 Projectiles . | . . . Explosions . | . . . Melee 106 | . . 106 Knockbacks 1 | . . 1 Impact 1 | . . 1 Kinetic . | . . . Secondary . | . . . Self-Inflicted Damage 48 | . . 48 Shots 3 | . . 3 Rammed . | . . . Targets Rammed . | . . . Kicked . | . . . Crushed . | . . . Highest Temperature 25 | . 12 25 Average Temperature 6 | . 6 6 Received Heat Transfer 519 | . 90 429 Siege Activations . | . . . Robots Corrupted . | . . . Combat Hostiles . | . . . Parts Fried 2 | . . 2 Impact Corruptions 4 | . . 4 Robots Melted . | . . . Combat Hostiles . | . . . Parts Melted . | . . . Heat Transferred . | . . . Parts Sabotaged . | . . . Parts Stolen . | . . . Parts Stripped . | . . . Power Chain Reactions . | . . . Alert | -11 -10 -9 ------- Run | Yrd Mat Mat Peak Influence 182 | . 66 182 Initial 27 | . . 27 Average 65 | . 37 89 Maximum Alert Level . | . . . Low Security (%) 100 | 100 100 100 Level 1 . | . . . Level 2 . | . . . Level 3 . | . . . Level 4 . | . . . Level 5 . | . . . High Security . | . . . Max Security . | . . . Squads Dispatched 1 | . . 1 Investigation . | . . . Extermination . | . . . Reinforcement 1 | . . 1 Assault . | . . . Garrison . | . . . Intercept . | . . . Searches Triggered . | . . . Construction Impeded . | . . . Haulers Reinforced . | . . . Active Scanning Responses . | . . . Cargo Convoy Interrupts . | . . . Stealth | -11 -10 -9 --------- Run | Yrd Mat Mat Distress Signals . | . . . Communications Jammed . | . . . Distress Signals . | . . . Times Spotted 24 | . 6 18 Peak Tracking Total 6 | . 3 6 Tactical Retreats 4 | . 2 2 Traps | -11 -10 -9 ------- Run | Yrd Mat Mat Traps Triggered . | . . . Indirectly . | . . . Trap Hack Attempts . | . . . Triggered . | . . . Disarmed 6 | . 6 . Reprogrammed . | . . . Reused . | . . . Traps Extracted . | . . . Installed . | . . . Triggered . | . . . Machines | -11 -10 -9 ---------- Run | Yrd Mat Mat Machines Disabled . | . . . Max in Single Turn . | . . . Machines Repaired . | . . . Machines Dismantled . | . . . Machines Sabotaged . | . . . Overloaded Fab Kills . | . . . Hacking | -11 -10 -9 --------- Run | Yrd Mat Mat Machines Accessed 4 | . 2 2 Terminals 4 | . 2 2 Fabricators . | . . . Repair Stations . | . . . Recycling Units . | . . . Scanalyzers . | . . . Garrison Access . | . . . Total Hacks 18 | . 10 8 Successful 9 | . 7 2 Failed 9 | . 3 6 Catastrophic 1 | . 1 . Database Lockouts . | . . . Manual . | . . . Terminals 18 | . 10 8 Fabricators . | . . . Repair Stations . | . . . Recycling Units . | . . . Scanalyzers . | . . . Garrison Access . | . . . Terminal Hacks 9 | . 7 2 Record 2 | . . 2 Alert Level 2 | . 2 . Unreport Threat 1 | . 1 . Locate Traps 1 | . 1 . Disarm Traps 1 | . 1 . Surveillance Status 1 | . 1 . Reinforcement Status 1 | . 1 . Fabricator Hacks . | . . . Repair Station Hacks . | . . . Recycling Unit Hacks . | . . . Scanalyzer . | . . . Garrison Access Hacks . | . . . Unauthorized Hacks . | . . . Terminals . | . . . Fabricators . | . . . Repair Stations . | . . . Recycling Units . | . . . Scanalyzers . | . . . Garrison Access . | . . . Data Cores Recovered . | . . . Used . | . . . Hacking Detections 3 | . 1 2 Full Trace Events 3 | . 1 2 Feedback Events . | . . . Feedback Blocked . | . . . Robot Schematics Acquired . | . . . Robots Built . | . . . Authchips . | . . . Time . | . . . Total Robot Build Rating . | . . . Part Schematics Acquired . | . . . Parts Built . | . . . Authchips . | . . . Time . | . . . Total Part Build Rating . | . . . Parts Repaired . | . . . Time . | . . . Parts Recycled . | . . . Recycled Matter . | . . . Retrieved Matter . | . . . Retrieved Components . | . . . Parts Scanalyzed . | . . . Part Schematics Acquired . | . . . Parts Damaged . | . . . Bothacking | -11 -10 -9 ------------ Run | Yrd Mat Mat Used RIF Installer . | . . . Robots Hacked . | . . . Non-combat . | . . . Combat . | . . . Robot Hacks Applied . | . . . Relay Couplers Released . | . . . Fabnet Peak Effective % . | . . . Robots Rewired . | . . . Allies Hacked . | . . . Hacks Repelled . | . . . Allies | -11 -10 -9 -------- Run | Yrd Mat Mat Total Allies . | . . . Largest Group . | . . . Highest-Rated Group . | . . . Highest-Rated Ally . | . . . Total Orders . | . . . Ally Attacks . | . . . Total Damage . | . . . Kills . | . . . Allies Corrupted . | . . . Allies Melted . | . . . Intel | -11 -10 -9 ------- Run | Yrd Mat Mat Robot Analysis Total . | . . . Derelict Logs Recovered . | . . . Drone Launches . | . . . Drone Recoveries . | . . . Exploration | -11 -10 -9 ------------- Run | Yrd Mat Mat Turns Passed 895 | 65 303 527 Spaces Moved 646 | 49 215 382 Core 27 | 15 . 12 Treads . | . . . Legs 346 | 34 215 97 Wheels 152 | . . 152 Hover 121 | . . 121 Flight . | . . . Fastest Speed 50 | 50 120 56 Average Speed 109 | 106 120 103 Slowest Speed 250 | 120 120 250 Overloaded Moves . | . . . Propulsion Burnouts . | . . . Robots Hopped . | . . . Cave-ins Triggered . | . . . Exploration Rate (%) 25 | 5 26 44 Regions Visited 2 Branch Regions . Pre-discovered Areas . | . . . Known Exits Taken . | . . . Unknown Exits Taken 2 | 1 1 . Scrap Searched . | . . . Spaces Dug 8 | . . 8 Terrain Destroyed 53 | . . 53 Melee 8 | . . 8 Projectile . | . . . AOE 45 | . . 45 Terrain Rammed . | . . . Walls Destroyed . | . . . Machines Disabled . | . . . Actions | -11 -10 -9 --------- Run | Yrd Mat Mat Total 758 | 61 237 460 Wait 15 | . 2 13 Move 644 | 48 214 382 Hop . | . . . Pick Up 23 | 8 5 10 Fast Attach 1 | . . 1 Attach 16 | 5 2 9 Detach 1 | . . 1 Swap 4 | . . 4 Drop 2 | . . 2 Fire 40 | . 14 26 Melee 12 | . . 12 Ram . | . . . Kick . | . . . Crush . | . . . Escape Stasis . | . . . Rewire . | . . . Trap . | . . . Miscellaneous . | . . . Route ------- -11/Scrapyard -10/Materials -9/Materials History --------- Turn | Location | Event 13 | -11/Scrapyard | Discovered new exit (range 15) 66 | -11/Scrapyard | Entered Materials 297 | -10/Materials | Discovered new exit (range 5) 312 | -10/Materials | Build established: Mutant 369 | -10/Materials | Entered another Materials area 369 | -9/Materials | Evolved 2 slots: Utility x2 541 | -9/Materials | Lost 6 parts (1p2n1u2w) 834 | -9/Materials | Core integrity fell below 50% 896 | -9/Materials | Self-destructed Last Messages --------------- 00835_ R-06 Scavenger knocked back. 00836_ R-06 Scavenger system terminally corrupted. 00838_ Sneak attack on U-05 Engineer. 00838_ Destroyed Wheel. 00838_ U-05 Engineer system corrupted by crushing effect. 00839_ U-05 Engineer system terminally corrupted. 00839_ Terrain Scanner fried. 00839_ Wheel fried. 00840_ Acquired 11 matter. 00841_ Acquired 97 matter. 00842_ Acquired Core Shielding. 00844_ Hover Unit destroyed. 00846_ R-06 Scavenger collects Ion Engine. 00850_ K-01 Serf collects debris. 00852_ R-06 Scavenger collects Heat Sink. 00872_ Hover Unit destroyed. 00889_ U-05 Engineer builds a Wall. Map ----- +----------------------------------------------------+ | ?????????????????????????????????????????????????? | | ?????????????????????????????????????????????????? | | ?????????????????????????????????????????????????? | | ?????????????????????????????????????????????????? | | ?????????????????????????????????????????????????? | | ?????????????????????????????????????????????????? | | ?????????????????????????????????????????????????? | | ?????????????????????????????????????????????????? | | ????????????????????????????????????"????????????? | | ???????????????????????????????????? ????????????? | | ??????????????????????????????????##+##??????????? | | ??????????????????????????????????# #??????????? | | ??????????????????????????????????# #??????????? | | ??????????????????????????????????# #??????????? | | ??????????????????????????????????# #####??????? | | ??????????????????????????????????# //#??????? | | ???????????????????????#######????# //#??????? | | ???????????????????????#!![[**????# !!#??????? | | ???????????????????????#!![[*?????# !!???????? | | ???????????????????????# ?????# /????????? | | ????????????????????? # ##### ?????????? | | ???????????????????? #????????### | | ??????? ?????????? ########## | | ??????? ?????????? g | | ?????# #???????????##g#########/############ | | ?????## ##???????????# @""" ## ############ | | ?????## # ???????????# """ ## ############ | | ?????## + ???????????# g""" ## ### # | | ?????## # ???????????# u ## ### [ # | | ?????## # ???????????#! ## ### # | | ?????## # ???????????# ## ### + | | ?????## # ???????????######### ### # | | ????? + ???????????????????# ### # | | ??????? # ???????????????????# ### !# | | ? #????????????????????########[ ! # | | #####?## ##??????????????????########## [ # | | ##### ######??????????????###########+####### | | #####+############????????## # ####### | | # ########????????## # ####### | | # # ##????????## # ###### | | # # T ##????????## """ # | | # + "" ##????????## """ + T | | # ""# ##????????## """ # | | # """"" Y"# ##????????## """ ####+### | | # """"" ""## ###???????### ## ### | | #### """"" ## ###???????### ## ### | | ############ ##????????##"##########* ### | | ############ ##????#################** ### | | ############ ##????###### ######??##* ### | | ##! [ # ######## ##??########## | +----------------------------------------------------+ Best States ------------- Heat Dissipation 28 Energy Generation 14 Energy Capacity 280 Matter Stores 287 Matter Capacity 300 Sight Range 16 Terrain Scan Density 10 Core Shielding 20 Evasion (%) 55 Item Schematics ----------------- None Robot Schematics ------------------ None Fabricated ------------ Nothing Alien Tech Used ----------------- None Achievements -------------- Everything Is Under Control Challenges ------------ None Game ------ Seed ArmageddonZhirovLegs Manual? 0 Play Time 00:15:34 Cumulative 3.2 hours Start 2024.05.04 @ 16:24:54 End 2024.05.04 @ 16:44:10 Sessions 1 Manual Loads 0 Difficulty Rogue Special Mode None Game No. 5 Rogue 5 Adventurer 0 Explorer 0 Win Type - Total 0 Types 0/0/0/0/0/0/0/0/0 Lore% 10 Gallery% 6 Achievement% 8 Wizard Run 0 Options --------- Layout 1 ASCII 0 Keyboard 0 Movement Mouse Keybinds 0 Fullscreen 2 Font 24/Smallcaps Map View 50x35 Zoom Use 0% Tactical HUD 1 Map Filters NONE Filters NONE Steam 1 RUN: 42145914-9089-4b91-80b0-e5143b1eae30